[Event "Wuerttemberg Rapid Teams 2024"]
[Site "B?blingen, Germany"]
[Date "2024.04.13"]
[Round "6.31"]
[White "Retzlaff, Kian"]
[Black "Mikeler, Marcel"]
[Result "1-0"]
[ECO "E97"]
[WhiteElo "1793"]
[BlackElo "1945"]
[Annotator "TA"]
[PlyCount "101"]
[EventDate "2024.04.13"]
[EventType "team-tourn"]
[SourceTitle "playchess.com"]
[Source "ChessBase"]
[SourceQuality "1"]
[TimeControl "900+5"]

{[%evp 21,100,14,41,35,60,25,39,43,17,0,81,78,268,144,199,147,188,184,183,140,147,91,131,123,123,123,186,175,306,289,300,285,377,384,385,243,254,222,220,168,742,316,518,478,513,396,401,404,406,404,469,481,472,476,458,460,1003,998,864,563,714,710,716,679,696,635,696,660,810,618,1108,973,853,852,1241,1136,1199,820,29998,29999,29999]} 1. d4 {[%emt 0:00:02]} Nf6 {[%emt 0:00:02]} 2. Nf3 {[%emt 0:00:02]} g6 {[%emt 0:00:04]} 3. c4 {[%emt 0:00:01]} Bg7 {[%emt 0:00:03]} 4. Nc3 {[%emt 0:00:02]} d6 {[%emt 0:00:01]} 5. e4 {[%emt 0:00:00]} O-O {[%emt 0:00:10]} 6. Be2 {[%emt 0:00:17]} e5 {[%emt 0:00:16]} 7. O-O {[%emt 0:00:00]} Nc6 {[%emt 0:00:02]} 8. d5 {[%emt 0:00:00]} Ne7 {[%emt 0:00:01]} 9. b4 {[%emt 0:00:00]} a5 {[%emt 0:00:40]} 10. bxa5 {[%emt 0:00:00]} Rxa5 {[%emt 0:00:12]} 11. a4 {[%emt 0:00:23][%cal Ba2a4,Ba4a5][%mdl 32]} Nd7 {[%emt 0:00:23]} 12. Nd2 {[%emt 0:00:00]} f5 {[%emt 0:00:04]} 13. Ba3 {[%emt 0:00:00]} b6 {[%emt 0:00:21]} 14. Bb4 {[%emt 0:00:00] White is slightly better.} Ra8 {[%emt 0:00:09]} 15. Nb3 {[%emt 0:00:13]} f4 {[%emt 0:01:08]} (15... Nc5 $11 {keeps the balance.}) 16. a5 $16 {[%emt 0:00:13]} Ba6 $2 {[%emt 0:00:45]} (16... Nc5 $16) 17. Nb5 {[%emt 0:00:30]} ({Only move:} 17. axb6 $18 {Threatens to win with c5.} f3 18. gxf3 (18. Bxf3 Nxb6 19. Be2 Bxc4 $16)) 17... Nf6 {[%emt 0:01:27]} (17... bxa5 $16 18. Bxa5 Bxb5) 18. f3 {[%emt 0:00:19]} ({White should play} 18. axb6 $18 Bxb5 19. Rxa8 (19. cxb5 Rxa1 20. Qxa1 cxb6 $18) 19... Qxa8 20. bxc7 (20. cxb5 Qa4 $18)) 18... Nd7 {[%emt 0:01:07]} 19. axb6 {[%emt 0:00:55]} Nxb6 {[%emt 0:00:04]} 20. Qc2 {[%emt 0:00:14]} Qd7 {[%emt 0:01:46]} 21. Ra2 {[%emt 0:00:27] White is more active.} (21. Rxa6 $142 Rxa6 22. c5) 21... g5 {[%emt 0:00:35]} (21... Nxc4 $2 22. Rxa6 (22. Bxc4 Bxb5 23. Ra5 Ba4 $11) 22... Rxa6 23. Qxc4 $18) 22. Rfa1 {[%emt 0:00:01]} Bxb5 {[%emt 0:00:42]} 23. cxb5 {[%emt 0:01:10]} h5 {[%emt 0:00:38]} (23... Rxa2 $16 {keeps fighting.} 24. Rxa2 (24. Qxa2 Ra8 $16) 24... Nec8) 24. Ra7 $18 {[%emt 0:01:40]} Rac8 {[%emt 0:00:42]} (24... Rfc8 {might work better.} 25. h3 Rxa7 26. Rxa7 Bh6) 25. Ba5 {[%emt 0:00:17][%cal Ob3c5] Black must now prevent Nc5!} Qd8 {[%emt 0:01:25]} 26. Rc1 {[%emt 0:00:19]} Na8 {[%emt 0:01:59]} 27. Nd2 {[%emt 0:01:39] Black is weak on the light squares} Rf7 {[%emt 0:00:37]} 28. Nc4 {[%emt 0:00:48]} (28. Bxc7 Nxc7 29. Rxc7 Rb8 $18) 28... Bf6 {[%emt 0:00:31]} 29. Nb2 {[%emt 0:00:05][%cal Ra5c7]} Ng6 {[%emt 0:00:07]} 30. b6 {[%emt 0:00:54]} g4 $2 {[%emt 0:00:47]} (30... Nxb6 31. Qc6 Ne7) 31. fxg4 {[%emt 0:00:41]} (31. b7 $142) 31... Bg5 $2 {[%emt 0:00:11]} (31... Nxb6 32. gxh5 Nh4 33. Bxb6 f3) 32. b7 {[%emt 0:00:22]} f3 {[%emt 0:00:15] [#] ( -> ...Be3+)} 33. Bxf3 {[%emt 0:01:25][%cal Be2f3,Bf3g4,Bg4e6][%mdl 32]} (33. bxc8=R Be3+ 34. Kh1 fxg2+ 35. Kxg2 Qxc8 $18) 33... Be3+ {[%emt 0:00:05]} 34. Kh1 {[%emt 0:00:00]} Bxa7 {[%emt 0:00:06]} 35. gxh5 {[%emt 0:00:20]} (35. bxc8=B Qxc8 36. Nc4 (36. gxh5 Nh4 $18) 36... Qf8 $18) (35. bxa8=B $2 Rxa8 36. Be2 (36. Bxc7 $2 Qg5 $19) (36. gxh5 $2 Nh4 $19) 36... Nf4 $19) 35... Nh4 {[%emt 0:00:10]} 36. Bg4 {[%emt 0:00:23]} (36. bxc8=B Qxc8 37. Nc4 Qd8 $16) (36. bxa8=Q $2 Rxa8 37. Be1 Nxf3 38. gxf3 Qf6 $19) 36... Rb8 {[%emt 0:00:07] [#] ...Rf2 would now be deadly.} 37. bxa8=Q {[%emt 0:00:30]} (37. bxa8=R Rxa8 38. Be6 (38. Bxc7 $2 Qg5 $19) 38... Qe7) (37. bxa8=N $2 Rf2 38. Qxc7 (38. Be6+ $2 Kh8 $19) 38... Qg5 $19) 37... Rxa8 {[%emt 0:00:01]} 38. Be6 $1 {[%emt 0:00:07][%cal Oc1f1] Strongly threatening Rf1!} (38. Bxc7 $2 Qg5 39. Be6 Bf2 $19) 38... Qg5 {[%emt 0:00:12]} (38... Qf6 $142 39. Qxc7 (39. Bxf7+ Qxf7 40. Qe2 Rf8 $18) 39... Raf8 40. Bxf7+ (40. Qxa7 Qxe6 41. dxe6 Rxa7 $18) 40... Rxf7 41. Qd8+ Qxd8 42. Bxd8 Nxg2 43. Kxg2 Rf2+ 44. Kg3 Rxb2) 39. Rf1 {[%emt 0:00:20]} (39. Bxc7 $2 Bf2 40. Bh3 (40. Bxf7+ $2 Kh8 $19) 40... Rc8 $19 (40... Qxh5 41. Bxd6 Be3 42. Rb1 $16)) 39... Raf8 {[%emt 0:00:04]} 40. g3 {[%emt 0:00:15][%cal Bg2g3,Bg3h4][%mdl 32]} Qxh5 {[%emt 0:00:19]} 41. gxh4 {[%emt 0:00:41]} (41. Bxf7+ Rxf7 42. Rxf7 Qxf7 $14) 41... Kh8 {[%emt 0:00:01]} 42. Bxf7 {[%emt 0:00:23]} Rxf7 {[%emt 0:00:01]} 43. Rxf7 {[%emt 0:00:02]} Qxf7 {[%emt 0:00:01]} 44. Qg2 {[%emt 0:00:36] Prevents Qf1+.} (44. Qxc7 $2 Qf3#) 44... Qf4 {[%emt 0:00:05]} 45. Bd2 {[%emt 0:00:02]} (45. Bxc7 $2 {gets mated.} Qc1+ (45... Qxh4 $2 {perishes.} 46. Nd3 $18) (45... Qxh4 $2 46. Nd3 $18)) 45... Qxh4 {[%emt 0:00:08]} 46. Nd3 {[%emt 0:00:16] Threatening mate with Bg5.} Qh5 {[%emt 0:00:04]} 47. h3 {[%emt 0:00:12]} Qd1+ {[%emt 0:00:09]} 48. Kh2 {[%emt 0:00:01]} Qh5 {[%emt 0:00:09] Wards off Bh6} 49. Bg5 {[%emt 0:00:12] Bf6+ would kill now.} Bd4 {[%emt 0:00:06]} 50. Bf6+ {[%emt 0:00:01]} Kh7 {[%emt 0:00:05]} 51. Qg7# {[%emt 0:00:10] Weighted Error Value: White=0.71/Black=0.52.  Loses game:     	---       	Black=1      Mistake:       	White=4     	Black=7      Inaccurate:     	White=2     	Black=2      OK:         	White=8     	Black=8      Best:        	White=3     	Black=1      Strong:       	White=1     	---} 1-0

[Event "Wuerttemberg Rapid Teams 2024"]
[Site "B?blingen, Germany"]
[Date "2024.04.13"]
[Round "6.32"]
[White "Retzlaff, Nick"]
[Black "Dietzel, Lukas"]
[Result "1-0"]
[ECO "C50"]
[WhiteElo "1707"]
[BlackElo "1782"]
[Annotator "NA RC COMBH"]
[PlyCount "57"]
[EventDate "2024.04.13"]
[EventType "team-tourn"]
[SourceTitle "playchess.com"]
[Source "ChessBase"]
[SourceQuality "1"]
[TimeControl "900+5"]

1. e4 {[%emt 0:00:02]} e5 {[%emt 0:05:15]} 2. Nf3 {[%emt 0:00:02]} Nc6 {[%emt 0:00:00]} 3. d4 {[%emt 0:00:02]} exd4 {[%emt 0:00:16]} 4. Bc4 {[%emt 0:00:01]} Nf6 {[%emt 0:01:13]} 5. O-O {[%emt 0:00:06]} Be7 {[%emt 0:00:04]} 6. Nxd4 {[%emt 0:00:09]} O-O {[%emt 0:00:09]} 7. Nxc6 {[%emt 0:00:09]} bxc6 {[%emt 0:00:09]} 8. Nc3 {[%emt 0:00:11]} d6 {[%emt 0:00:35]} 9. Bg5 {[%emt 0:00:32]} h6 {[%emt 0:00:20]} 10. Bh4 {[%emt 0:00:18]} Be6 {[%emt 0:01:14]} 11. Qe2 {[%emt 0:00:40]} d5 {[%emt 0:00:36]} 12. Rad1 {[%emt 0:00:24]} d4 {[%emt 0:00:15]} 13. e5 {[%emt 0:01:39]} Nd5 {[%emt 0:00:18]} 14. Bxe7 {[%emt 0:00:32]} Qxe7 {[%emt 0:00:02]} 15. Rxd4 {[%emt 0:00:17]} Nxc3 {[%emt 0:00:37]} 16. bxc3 {[%emt 0:00:07]} Rab8 {[%emt 0:00:07]} 17. f4 {[%emt 0:00:36]} Rb2 {[%emt 0:01:03]} 18. f5 {[%emt 0:00:16]} Bxc4 {[%emt 0:00:17]} 19. Rxc4 {[%emt 0:00:26]} c5 {[%emt 0:00:23]} 20. f6 {[%emt 0:00:05]} Qe6 {[%emt 0:00:37]} 21. fxg7 {[%emt 0:00:05]} Re8 {[%emt 0:00:12]} 22. Rxc5 {[%emt 0:00:20]} Qg6 {[%emt 0:00:17]} 23. Qf3 {[%emt 0:00:16]} Rxc2 {[%emt 0:00:22]} 24. Kh1 {[%emt 0:00:11]} Rxa2 {[%emt 0:00:14]} 25. Rxc7 {[%emt 0:00:05]} Kh7 {[%emt 0:01:11]} 26. Rxf7 {[%emt 0:00:07]} Ra6 {[%emt 0:00:30]} 27. Rf6 {[%emt 0:00:29]} Rxf6 {[%emt 0:00:20]} 28. exf6 {[%emt 0:00:02]} Re6 {[%emt 0:00:21]} 29. f7 {[%emt 0:00:09]} 1-0

[Event "Wuerttemberg Rapid Teams 2024"]
[Site "B?blingen, Germany"]
[Date "2024.04.13"]
[Round "6.33"]
[White "Kottke, Markus"]
[Black "Notz, Lukas"]
[Result "0-1"]
[ECO "B12"]
[WhiteElo "2218"]
[BlackElo "1986"]
[Annotator "RC"]
[PlyCount "142"]
[EventDate "2024.04.13"]
[EventType "team-tourn"]
[SourceTitle "playchess.com"]
[Source "ChessBase"]
[SourceQuality "1"]
[TimeControl "900+5"]

1. e4 {[%emt 0:00:02]} c6 {[%emt 0:00:01]} 2. d4 {[%emt 0:00:01]} d5 {[%emt 0:00:01]} 3. e5 {[%emt 0:00:08]} Bf5 {[%emt 0:00:03]} 4. Nd2 {[%emt 0:00:02]} e6 {[%emt 0:00:08]} 5. Nb3 {[%emt 0:00:01]} c5 {[%emt 0:00:50]} 6. dxc5 {[%emt 0:00:34]} Bxc5 {[%emt 0:00:55]} 7. Nxc5 {[%emt 0:00:16]} Qa5+ {[%emt 0:00:03]} 8. c3 {[%emt 0:00:14]} Qxc5 {[%emt 0:00:03]} 9. Be3 {[%emt 0:00:03]} Qc7 {[%emt 0:00:06]} 10. f4 {[%emt 0:00:03]} Ne7 {[%emt 0:00:11]} 11. Nf3 {[%emt 0:00:06]} Bg4 {[%emt 0:00:08]} 12. h3 {[%emt 0:00:11]} Bxf3 {[%emt 0:00:09]} 13. Qxf3 {[%emt 0:00:01]} Nf5 {[%emt 0:00:04]} 14. Bf2 {[%emt 0:00:02]} h5 {[%emt 0:00:04]} 15. Bd3 {[%emt 0:00:04]} g6 {[%emt 0:00:42]} 16. g4 {[%emt 0:00:14]} hxg4 {[%emt 0:00:15]} 17. hxg4 {[%emt 0:00:01]} Rxh1+ {[%emt 0:00:06]} 18. Qxh1 {[%emt 0:00:01]} Ne7 {[%emt 0:00:10]} 19. Qh8+ {[%emt 0:00:15]} Kd7 {[%emt 0:00:02]} 20. Qf8 {[%emt 0:01:07]} g5 {[%emt 0:00:04]} 21. Bg3 {[%emt 0:00:36]} Qb6 {[%emt 0:00:25]} 22. Bf2 {[%emt 0:01:01]} Qxb2 {[%emt 0:00:07]} 23. Rb1 {[%emt 0:00:03]} Qxc3+ {[%emt 0:00:17]} 24. Ke2 {[%emt 0:00:01]} b6 {[%emt 0:00:25]} 25. Be1 {[%emt 0:00:35]} Qc5 {[%emt 0:00:34]} 26. Bb4 {[%emt 0:00:18]} Nbc6 {[%emt 0:00:41]} 27. Qxa8 {[%emt 0:00:17]} Nxb4 {[%emt 0:00:42]} 28. Qxa7+ {[%emt 0:00:06]} Kd8 {[%emt 0:00:10]} 29. Qa8+ {[%emt 0:00:36]} Kc7 {[%emt 0:01:10]} 30. Qa3 {[%emt 0:00:17]} Nxd3 {[%emt 0:00:09]} 31. Qxd3 {[%emt 0:00:02]} Nc6 {[%emt 0:00:26]} 32. fxg5 {[%emt 0:00:55]} Nxe5 {[%emt 0:00:21]} 33. Qd2 {[%emt 0:02:32]} Nc4 {[%emt 0:00:11]} 34. Qf4+ {[%emt 0:00:06]} Kc6 {[%emt 0:00:36]} 35. Rb3 {[%emt 0:00:01]} Qg1 {[%emt 0:00:19]} 36. Qg3 {[%emt 0:02:14]} Qc1 {[%emt 0:00:42]} 37. Qc3 {[%emt 0:00:27]} Qxg5 {[%emt 0:00:28]} 38. Qf3 {[%emt 0:00:17]} Qe5+ {[%emt 0:01:04]} 39. Kf2 {[%emt 0:00:22]} Qh2+ {[%emt 0:00:17]} 40. Qg2 {[%emt 0:00:12]} Qf4+ {[%emt 0:00:52]} 41. Rf3 {[%emt 0:00:01]} Qd4+ {[%emt 0:00:21]} 42. Kg3 {[%emt 0:00:01]} Ne3 {[%emt 0:00:41]} 43. Qf2 {[%emt 0:00:26]} Qxg4+ {[%emt 0:00:27]} 44. Kh2 {[%emt 0:00:01]} Nf5 {[%emt 0:01:10]} 45. Rb3 {[%emt 0:00:14]} Qh4+ {[%emt 0:00:07]} 46. Qxh4 {[%emt 0:00:04]} Nxh4 {[%emt 0:00:01]} 47. Kg3 {[%emt 0:00:02]} Nf5+ {[%emt 0:00:17]} 48. Kf4 {[%emt 0:00:01]} Nd6 {[%emt 0:00:07]} 49. Ke5 {[%emt 0:00:03]} Nc4+ {[%emt 0:00:12]} 50. Kf6 {[%emt 0:00:05]} e5 {[%emt 0:00:02]} 51. Kxf7 {[%emt 0:00:05]} e4 {[%emt 0:00:02]} 52. Ke6 {[%emt 0:00:03]} Kc5 {[%emt 0:00:05]} 53. Kf5 {[%emt 0:00:02]} e3 {[%emt 0:00:05]} 54. Kf4 {[%emt 0:00:03]} d4 {[%emt 0:00:01]} 55. a4 {[%emt 0:00:14]} Kd5 {[%emt 0:00:26]} 56. Rb5+ {[%emt 0:00:04]} Kc6 {[%emt 0:00:12]} 57. Kf3 {[%emt 0:00:04]} d3 {[%emt 0:00:11]} 58. Rh5 {[%emt 0:00:23]} d2 {[%emt 0:00:14]} 59. Ke2 {[%emt 0:00:06]} Nb2 {[%emt 0:00:05]} 60. Rh6+ {[%emt 0:00:10]} Kb7 {[%emt 0:00:05]} 61. Rd6 {[%emt 0:00:17]} d1=Q+ 62. Rxd1 {[%emt 0:00:02]} Nxd1 {[%emt 0:00:06]} 63. Kxd1 {[%emt 0:00:00]} Ka6 {[%emt 0:00:01]} 64. Ke2 {[%emt 0:00:06]} Ka5 {[%emt 0:00:01]} 65. Kxe3 {[%emt 0:00:01]} Kxa4 {[%emt 0:00:01]} 66. Kd2 {[%emt 0:00:00]} Kb3 {[%emt 0:00:03]} 67. Kc1 {[%emt 0:00:01]} b5 {[%emt 0:00:22]} 68. Kb1 {[%emt 0:00:01]} b4 {[%emt 0:00:06]} 69. Ka1 {[%emt 0:00:00]} Kc2 {[%emt 0:00:04]} 70. Ka2 {[%emt 0:00:01]} b3+ {[%emt 0:00:01]} 71. Ka3 {[%emt 0:00:01]} b2 {[%emt 0:00:01]} 0-1

[Event "Wuerttemberg Rapid Teams 2024"]
[Site "B?blingen, Germany"]
[Date "2024.04.13"]
[Round "6.34"]
[White "Wezel, Sebastian"]
[Black "Hofer, Markus"]
[Result "0-1"]
[ECO "B03"]
[WhiteElo "1907"]
[BlackElo "2047"]
[Annotator "NA RC"]
[PlyCount "52"]
[EventDate "2024.04.13"]
[EventType "team-tourn"]
[SourceTitle "playchess.com"]
[Source "ChessBase"]
[SourceQuality "1"]
[TimeControl "900+5"]

1. e4 {[%emt 0:00:01]} Nf6 {[%emt 0:00:00]} 2. e5 {[%emt 0:00:03]} Nd5 {[%emt 0:00:01]} 3. c4 {[%emt 0:00:01]} Nb6 {[%emt 0:00:00]} 4. d4 {[%emt 0:00:04]} d6 {[%emt 0:00:01]} 5. exd6 {[%emt 0:00:02]} exd6 {[%emt 0:00:01]} 6. Be3 {[%emt 0:00:23]} Be7 {[%emt 0:00:03]} 7. Nc3 {[%emt 0:00:06]} Nc6 {[%emt 0:00:01]} 8. h3 {[%emt 0:00:03]} O-O {[%emt 0:00:04]} 9. Nf3 {[%emt 0:00:03]} Bf5 {[%emt 0:00:16]} 10. b3 {[%emt 0:00:18]} Bf6 {[%emt 0:00:30]} 11. Be2 {[%emt 0:00:02]} Re8 {[%emt 0:00:16]} 12. O-O {[%emt 0:00:02]} a5 {[%emt 0:00:14]} 13. Rc1 {[%emt 0:03:41]} a4 {[%emt 0:00:13]} 14. d5 {[%emt 0:00:01]} Nb4 {[%emt 0:01:30]} 15. Nd4 {[%emt 0:01:32]} Bg6 {[%emt 0:00:47]} 16. a3 {[%emt 0:00:13]} axb3 {[%emt 0:00:28]} 17. axb4 {[%emt 0:00:10]} b2 {[%emt 0:00:02]} 18. Rb1 {[%emt 0:00:16]} Bxb1 {[%emt 0:00:02]} 19. Qxb1 {[%emt 0:00:38]} Bxd4 {[%emt 0:01:25]} 20. Bxd4 {[%emt 0:00:01]} Qh4 {[%emt 0:00:02]} 21. Bxb6 {[%emt 0:00:28]} cxb6 {[%emt 0:00:10]} 22. Qxb2 {[%emt 0:00:01]} Re5 {[%emt 0:00:26]} 23. Nb5 {[%emt 0:00:28]} Rae8 {[%emt 0:00:19]} 24. Bf3 {[%emt 0:00:09]} Rg5 {[%emt 0:02:22]} 25. Kh1 {[%emt 0:00:29]} Qxc4 {[%emt 0:00:37]} 26. Qc1 {[%emt 0:00:23]} Qxb5 {[%emt 0:00:12]} 0-1

[Event "Wuerttemberg Rapid Teams 2024"]
[Site "B?blingen, Germany"]
[Date "2024.04.13"]
[Round "6.37"]
[White "Foksha, Mischa"]
[Black "Strathmann, Sacha"]
[Result "0-1"]
[ECO "B33"]
[WhiteElo "2021"]
[BlackElo "2125"]
[Annotator "NA RC"]
[PlyCount "54"]
[EventDate "2024.04.13"]
[EventType "team-tourn"]
[SourceTitle "playchess.com"]
[Source "ChessBase"]
[SourceQuality "1"]
[TimeControl "900+5"]

1. e4 {[%emt 0:00:03]} c5 {[%emt 0:00:05]} 2. Nf3 {[%emt 0:00:09]} Nc6 {[%emt 0:00:02]} 3. d4 {[%emt 0:00:18]} cxd4 {[%emt 0:00:02]} 4. Nxd4 {[%emt 0:00:02]} Nf6 {[%emt 0:00:02]} 5. Nc3 {[%emt 0:00:02]} h5 {[%emt 0:00:02]} 6. Be3 {[%emt 0:00:38]} Ng4 {[%emt 0:00:04]} 7. Bc1 {[%emt 0:00:26]} Qb6 {[%emt 0:00:04]} 8. f3 {[%emt 0:00:29]} Qxd4 {[%emt 0:00:07]} 9. fxg4 {[%emt 0:00:07]} Qxd1+ {[%emt 0:00:09]} 10. Kxd1 {[%emt 0:00:17]} hxg4 {[%emt 0:00:02]} 11. Nd5 {[%emt 0:00:08]} Kd8 {[%emt 0:00:13]} 12. Bf4 {[%emt 0:00:08]} d6 {[%emt 0:00:02]} 13. c3 {[%emt 0:00:26]} e6 {[%emt 0:00:44]} 14. Ne3 {[%emt 0:00:06]} Be7 {[%emt 0:00:05]} 15. Be2 {[%emt 0:00:04]} g5 {[%emt 0:00:05]} 16. Bg3 {[%emt 0:00:06]} f5 {[%emt 0:00:07]} 17. Bf2 {[%emt 0:00:29]} g3 {[%emt 0:00:29]} 18. Bg1 {[%emt 0:00:18]} f4 {[%emt 0:00:05]} 19. Nc4 {[%emt 0:00:04]} d5 {[%emt 0:00:10]} 20. exd5 {[%emt 0:00:26]} exd5 {[%emt 0:00:02]} 21. Nd2 {[%emt 0:00:03]} g4 {[%emt 0:00:41]} 22. Bf1 {[%emt 0:01:44]} Bf5 {[%emt 0:00:56]} 23. h3 {[%emt 0:01:37]} Kc7 {[%emt 0:00:06]} 24. Rc1 {[%emt 0:00:22]} f3 {[%emt 0:01:29]} 25. Bd4 {[%emt 0:00:16]} Nxd4 {[%emt 0:00:25]} 26. cxd4+ {[%emt 0:00:03]} Kd6 {[%emt 0:00:03]} 27. gxf3 {[%emt 0:00:28]} gxh3 {[%emt 0:00:01]} 0-1

[Event "Wuerttemberg Rapid Teams 2024"]
[Site "B?blingen, Germany"]
[Date "2024.04.13"]
[Round "6.38"]
[White "Baur, Frank"]
[Black "Foksha, Alexander"]
[Result "1-0"]
[ECO "D45"]
[WhiteElo "2050"]
[BlackElo "1924"]
[Annotator "NA RC"]
[PlyCount "73"]
[EventDate "2024.04.13"]
[EventType "team-tourn"]
[SourceTitle "playchess.com"]
[Source "ChessBase"]
[SourceQuality "1"]
[TimeControl "900+5"]

1. d4 {[%emt 0:00:07]} d5 {[%emt 0:00:07]} 2. c4 {[%emt 0:00:11]} c6 {[%emt 0:00:03]} 3. Nc3 {[%emt 0:00:06]} Nf6 {[%emt 0:00:04]} 4. e3 {[%emt 0:00:06]} e6 {[%emt 0:00:08]} 5. Nf3 {[%emt 0:00:05]} Bd6 {[%emt 0:00:03]} 6. Be2 {[%emt 0:00:07]} Nbd7 {[%emt 0:00:09]} 7. O-O {[%emt 0:00:11]} O-O {[%emt 0:00:03]} 8. b3 {[%emt 0:00:07]} Qe7 {[%emt 0:00:04]} 9. Bb2 {[%emt 0:00:09]} b6 {[%emt 0:00:14]} 10. Bd3 {[%emt 0:00:20]} Bb7 {[%emt 0:00:09]} 11. e4 {[%emt 0:02:03]} dxe4 {[%emt 0:00:04]} 12. Nxe4 {[%emt 0:00:03]} Nxe4 {[%emt 0:00:02]} 13. Bxe4 {[%emt 0:00:01]} Nf6 {[%emt 0:00:02]} 14. Bc2 {[%emt 0:00:12]} Rad8 {[%emt 0:00:13]} 15. Re1 {[%emt 0:00:19]} Ba3 {[%emt 0:01:21]} 16. Bc3 {[%emt 0:03:00]} Bb4 {[%emt 0:00:06]} 17. Qd3 {[%emt 0:00:08]} Bxc3 {[%emt 0:00:05]} 18. Qxc3 {[%emt 0:00:02]} Qd6 {[%emt 0:00:24]} 19. Rad1 {[%emt 0:00:18]} Qf4 {[%emt 0:01:02]} 20. Ne5 {[%emt 0:03:35]} c5 {[%emt 0:01:51]} 21. dxc5 {[%emt 0:00:49]} bxc5 {[%emt 0:00:15]} 22. g3 {[%emt 0:00:42]} Qg5 {[%emt 0:01:08]} 23. f3 {[%emt 0:00:37]} Rxd1 {[%emt 0:00:51]} 24. Rxd1 {[%emt 0:00:09]} h5 {[%emt 0:00:27]} 25. Kf2 {[%emt 0:00:24]} h4 {[%emt 0:00:28]} 26. Qe3 {[%emt 0:00:01]} hxg3+ {[%emt 0:00:26]} 27. hxg3 {[%emt 0:00:03]} Qxe3+ {[%emt 0:02:26]} 28. Kxe3 {[%emt 0:00:02]} Rc8 {[%emt 0:00:40]} 29. g4 {[%emt 0:00:37]} g5 {[%emt 0:00:44]} 30. Be4 {[%emt 0:01:09]} Bxe4 {[%emt 0:00:37]} 31. fxe4 {[%emt 0:00:01]} Rc7 {[%emt 0:00:03]} 32. Kf3 {[%emt 0:00:24]} Kg7 {[%emt 0:00:02]} 33. Rd6 {[%emt 0:00:08]} Kf8 {[%emt 0:00:22]} 34. Rc6 {[%emt 0:00:16]} Rxc6 {[%emt 0:00:00]} 35. Nxc6 {[%emt 0:00:01]} a6 {[%emt 0:00:01]} 36. Nb8 {[%emt 0:00:02]} Nd7 {[%emt 0:00:07]} 37. Nxd7+ {[%emt 0:00:02]} 1-0

[Event "Wuerttemberg Rapid Teams 2024"]
[Site "B?blingen, Germany"]
[Date "2024.04.13"]
[Round "6.39"]
[White "Hadziselimovic, Adnan"]
[Black "Schmid, Tim"]
[Result "1/2-1/2"]
[ECO "E04"]
[WhiteElo "2053"]
[BlackElo "1765"]
[Annotator "NA RC"]
[PlyCount "98"]
[EventDate "2024.04.13"]
[EventType "team-tourn"]
[SourceTitle "playchess.com"]
[Source "ChessBase"]
[SourceQuality "1"]
[TimeControl "900+5"]

1. c4 {[%emt 0:00:01]} Nf6 {[%emt 0:00:04]} 2. g3 {[%emt 0:00:01]} e6 {[%emt 0:00:02]} 3. Bg2 {[%emt 0:00:02]} d5 {[%emt 0:00:04]} 4. d4 {[%emt 0:00:01]} dxc4 {[%emt 0:00:10]} 5. Nf3 {[%emt 0:00:27]} c5 {[%emt 0:00:08]} 6. Qa4+ {[%emt 0:00:03]} Nc6 {[%emt 0:00:15]} 7. Ne5 {[%emt 0:00:07]} Nd5 {[%emt 0:00:28]} 8. dxc5 {[%emt 0:00:47]} Qa5+ {[%emt 0:00:47]} 9. Qxa5 {[%emt 0:00:14]} Nxa5 {[%emt 0:00:02]} 10. Bd2 {[%emt 0:00:07]} Nc6 {[%emt 0:00:13]} 11. Nxc4 {[%emt 0:00:03]} Bxc5 {[%emt 0:00:58]} 12. Nc3 {[%emt 0:00:03]} Nxc3 {[%emt 0:01:53]} 13. Bxc3 {[%emt 0:00:03]} O-O {[%emt 0:00:56]} 14. O-O {[%emt 0:00:10]} Nd4 {[%emt 0:00:12]} 15. Bxd4 {[%emt 0:00:14]} Bxd4 {[%emt 0:00:02]} 16. Rfd1 {[%emt 0:00:04]} Bf6 {[%emt 0:00:19]} 17. Rac1 {[%emt 0:00:32]} Rb8 {[%emt 0:01:02]} 18. e4 {[%emt 0:00:16]} b5 {[%emt 0:00:42]} 19. Nd6 {[%emt 0:00:31]} Bxb2 {[%emt 0:00:23]} 20. Rb1 {[%emt 0:00:12]} Be5 {[%emt 0:00:55]} 21. Nxb5 {[%emt 0:00:02]} a6 {[%emt 0:00:14]} 22. Na3 {[%emt 0:00:59]} Rxb1 {[%emt 0:01:01]} 23. Rxb1 {[%emt 0:00:02]} Bf6 {[%emt 0:01:21]} 24. Nc4 {[%emt 0:00:18]} e5 {[%emt 0:00:28]} 25. Nd6 {[%emt 0:02:23]} Be6 {[%emt 0:01:13]} 26. Rb6 {[%emt 0:00:06]} Rd8 {[%emt 0:00:29]} 27. Rxa6 {[%emt 0:00:55]} Be7 {[%emt 0:00:02]} 28. Nf5 {[%emt 0:00:13]} Rd1+ {[%emt 0:01:11]} 29. Bf1 {[%emt 0:00:05]} Bd8 {[%emt 0:00:04]} 30. Kg2 {[%emt 0:00:23]} Rxf1 {[%emt 0:00:04]} 31. Rd6 {[%emt 0:00:49]} Bc7 {[%emt 0:00:02]} 32. Rc6 {[%emt 0:00:08]} Ra1 {[%emt 0:00:29]} 33. Rxc7 {[%emt 0:00:08]} Rxa2 {[%emt 0:00:10]} 34. Rc5 {[%emt 0:01:18]} Bxf5 {[%emt 0:00:35]} 35. exf5 {[%emt 0:00:02]} f6 {[%emt 0:00:10]} 36. Rc7 {[%emt 0:00:11]} h5 {[%emt 0:00:16]} 37. h3 {[%emt 0:00:15]} Kh7 {[%emt 0:00:06]} 38. Re7 {[%emt 0:00:27]} Kh6 {[%emt 0:00:08]} 39. g4 {[%emt 0:00:03]} hxg4 {[%emt 0:00:09]} 40. hxg4 {[%emt 0:00:02]} Ra4 {[%emt 0:00:20]} 41. Kg3 {[%emt 0:00:44]} Rd4 {[%emt 0:00:02]} 42. Kh4 {[%emt 0:00:29]} Rf4 {[%emt 0:00:03]} 43. Kg3 {[%emt 0:01:02]} Rd4 {[%emt 0:00:01]} 44. Re6 {[%emt 0:00:03]} Rf4 {[%emt 0:00:03]} 45. f3 {[%emt 0:00:15]} Rd4 {[%emt 0:00:09]} 46. Kh4 {[%emt 0:00:03]} Rf4 {[%emt 0:00:01]} 47. Kg3 {[%emt 0:01:10]} Rd4 {[%emt 0:00:02]} 48. Re8 {[%emt 0:00:03]} Kh7 {[%emt 0:00:13]} 49. Kf2 {[%emt 0:01:35]} Rf4 {[%emt 0:00:16]} 1/2-1/2